[Event "DMP-III LIGA Senior PK 2020"]
[Site "Bystre"]
[Date "2020.07.11"]
[Round "7.18"]
[White "Tarsa, Joanna"]
[Black "Polak, Sylwia"]
[Result "0-1"]
[ECO "B41"]
[WhiteElo "1574"]
[BlackElo "1614"]
[Annotator "NA RC"]
[PlyCount "128"]
[EventDate "2020.07.05"]
[EventType "team-tourn"]
[EventCountry "POL"]
[SourceTitle "playchess.com"]
[Source "ChessBase"]
[SourceQuality "1"]
[TimeControl "5400+30"]

1. e4 {[%emt 0:00:00]} c5 {[%emt 0:00:00]} 2. Nf3 {[%emt 0:00:00]} e6 {[%emt 0:00:00]} 3. d4 {[%emt 0:00:00]} cxd4 {[%emt 0:00:00]} 4. Nxd4 {[%emt 0:00:00]} a6 {[%emt 0:00:00]} 5. a3 {[%emt 0:01:26]} Qc7 {[%emt 0:00:05]} 6. Nc3 {[%emt 0:00:19]} Nf6 {[%emt 0:00:18]} 7. Be2 {[%emt 0:00:32]} b5 {[%emt 0:03:20]} 8. Bg5 {[%emt 0:06:22]} Be7 {[%emt 0:01:17]} 9. Bf3 {[%emt 0:07:33]} Bb7 {[%emt 0:00:49]} 10. Be3 {[%emt 0:01:12]} d6 {[%emt 0:01:06]} 11. O-O {[%emt 0:01:33]} O-O {[%emt 0:01:22]} 12. Qd2 {[%emt 0:08:15]} Nbd7 {[%emt 0:00:41]} 13. Nb3 {[%emt 0:08:37]} Ne5 {[%emt 0:02:23]} 14. Qe2 {[%emt 0:05:50]} Nc4 {[%emt 0:01:07]} 15. Rab1 {[%emt 0:00:54]} Nxa3 {[%emt 0:01:16]} 16. Ra1 {[%emt 0:00:16]} Nc4 {[%emt 0:00:36]} 17. Rab1 {[%emt 0:02:01]} Nxb2 {[%emt 0:06:43]} 18. Nxb5 {[%emt 0:03:24]} axb5 {[%emt 0:00:09]} 19. Rxb2 {[%emt 0:00:06]} Nxe4 {[%emt 0:02:55]} 20. Bxe4 {[%emt 0:00:21]} Bxe4 {[%emt 0:00:08]} 21. Qxb5 {[%emt 0:00:45]} Bf6 {[%emt 0:02:31]} 22. Rbb1 {[%emt 0:02:50]} Qxc2 {[%emt 0:04:19]} 23. Rbc1 {[%emt 0:04:34]} Qb2 {[%emt 0:08:44]} 24. Qb4 {[%emt 0:08:54]} Bd5 {[%emt 0:03:45]} 25. Rb1 {[%emt 0:00:35]} Qa3 {[%emt 0:03:04]} 26. Qxa3 {[%emt 0:01:27]} Rxa3 {[%emt 0:00:13]} 27. Nd4 {[%emt 0:00:17]} Bc4 {[%emt 0:01:40]} 28. Rfd1 {[%emt 0:01:39]} d5 {[%emt 0:00:15]} 29. Nc2 {[%emt 0:03:53]} Rb3 {[%emt 0:01:16]} 30. Rbc1 {[%emt 0:00:45]} Rfb8 {[%emt 0:02:17]} 31. Nd4 {[%emt 0:03:25]} Rd3 {[%emt 0:01:35]} 32. Rxd3 {[%emt 0:00:19]} Bxd3 {[%emt 0:00:06]} 33. Rd1 {[%emt 0:01:11]} Rb1 {[%emt 0:00:25]} 34. Rxb1 {[%emt 0:00:06]} Bxb1 {[%emt 0:00:06]} 35. Kf1 {[%emt 0:00:40]} e5 {[%emt 0:00:43]} 36. Nf3 {[%emt 0:01:37]} d4 {[%emt 0:01:39]} 37. Bc1 {[%emt 0:01:20]} e4 {[%emt 0:00:37]} 38. Nd2 {[%emt 0:01:49]} Bd3+ {[%emt 0:00:09]} 39. Ke1 {[%emt 0:00:13]} Be5 {[%emt 0:00:22]} 40. g3 {[%emt 0:00:32]} f5 {[%emt 0:00:13]} 41. Nb3 {[%emt 0:01:29]} Bc2 {[%emt 0:01:02]} 42. Nc5 {[%emt 0:01:04]} Kf7 {[%emt 0:01:52]} 43. Kd2 {[%emt 0:01:27]} Bb1 {[%emt 0:01:24]} 44. Kd1 {[%emt 0:01:42]} Ke7 {[%emt 0:01:31]} 45. Ba3 {[%emt 0:02:17]} Bd6 {[%emt 0:00:58]} 46. Kc1 {[%emt 0:00:24]} Ba2 {[%emt 0:00:17]} 47. Kd2 {[%emt 0:00:30]} g5 {[%emt 0:00:15]} 48. Bb4 {[%emt 0:00:36]} Bd5 {[%emt 0:03:03]} 49. Na6 {[%emt 0:00:22]} Bxb4+ {[%emt 0:00:52]} 50. Nxb4 {[%emt 0:00:06]} Kd6 {[%emt 0:00:28]} 51. Nc2 {[%emt 0:00:28]} Kc5 {[%emt 0:00:52]} 52. Ne1 {[%emt 0:01:32]} Kc4 {[%emt 0:00:46]} 53. Nc2 {[%emt 0:00:17]} f4 {[%emt 0:00:59]} 54. Na3+ {[%emt 0:00:14]} Kc5 {[%emt 0:01:27]} 55. Nc2 {[%emt 0:00:06]} Bb3 {[%emt 0:00:42]} 56. Ne1 {[%emt 0:01:55]} Kc4 {[%emt 0:00:33]} 57. Ng2 {[%emt 0:01:59]} e3+ {[%emt 0:01:39]} 58. fxe3 {[%emt 0:00:05]} fxe3+ {[%emt 0:00:06]} 59. Nxe3+ {[%emt 0:00:06]} dxe3+ {[%emt 0:00:07]} 60. Kxe3 {[%emt 0:00:02]} Kd5 {[%emt 0:03:24]} 61. Kf3 {[%emt 0:01:13]} Bd1+ {[%emt 0:01:10]} 62. Ke3 {[%emt 0:00:15]} Ke5 {[%emt 0:00:19]} 63. Kd3 {[%emt 0:01:05]} Kf5 64. h3 Bg4 {[%emt 0:03:43]} 0-1

[Event "DMP-III LIGA Senior PK 2020"]
[Site "Bystre"]
[Date "2020.07.11"]
[Round "7.21"]
[White "Biesiadecki, Adam"]
[Black "Klok, Kacper"]
[Result "1/2-1/2"]
[ECO "E06"]
[WhiteElo "1539"]
[BlackElo "1463"]
[Annotator "NA RC"]
[PlyCount "52"]
[EventDate "2020.07.05"]
[EventType "team-tourn"]
[EventCountry "POL"]
[SourceTitle "playchess.com"]
[Source "ChessBase"]
[SourceQuality "1"]
[TimeControl "5400+30"]

1. d4 {[%emt 0:00:00]} Nf6 {[%emt 0:00:07]} 2. Nf3 {[%emt 0:00:00]} e6 {[%emt 0:02:02]} 3. c4 {[%emt 0:00:00]} d5 {[%emt 0:02:13]} 4. g3 {[%emt 0:00:11]} Be7 {[%emt 0:04:11]} 5. Bg2 {[%emt 0:03:03]} O-O {[%emt 0:05:32]} 6. O-O {[%emt 0:01:49]} c6 {[%emt 0:00:23]} 7. Qc2 {[%emt 0:00:25]} dxc4 {[%emt 0:03:03]} 8. Qxc4 {[%emt 0:00:12]} Qd5 {[%emt 0:00:06]} 9. Qxd5 {[%emt 0:00:20]} exd5 {[%emt 0:00:10]} 10. Bg5 {[%emt 0:00:09]} Bf5 {[%emt 0:00:38]} 11. Nc3 {[%emt 0:00:14]} h6 {[%emt 0:00:20]} 12. Bxf6 {[%emt 0:00:10]} Bxf6 {[%emt 0:00:17]} 13. e3 {[%emt 0:00:11]} Nd7 {[%emt 0:00:38]} 14. Rac1 {[%emt 0:00:41]} Rac8 {[%emt 0:08:42]} 15. Rfd1 {[%emt 0:00:20]} Rfe8 {[%emt 0:00:33]} 16. a4 {[%emt 0:01:16]} Bg4 {[%emt 0:16:38]} 17. h3 {[%emt 0:02:05]} Bf5 {[%emt 0:07:05]} 18. g4 {[%emt 0:00:43]} Bh7 {[%emt 0:00:27]} 19. Ne2 {[%emt 0:00:53]} Be4 {[%emt 0:00:34]} 20. Ng3 {[%emt 0:00:15]} Bh7 {[%emt 0:00:19]} 21. Bf1 {[%emt 0:00:53]} a6 {[%emt 0:02:21]} 22. Bd3 {[%emt 0:01:03]} Bxd3 {[%emt 0:05:21]} 23. Rxd3 {[%emt 0:00:56]} Nb6 {[%emt 0:01:18]} 24. b3 {[%emt 0:00:14]} g6 {[%emt 0:02:15]} 25. a5 Kg7 26. Re1 Nd7 1/2-1/2

[Event "DMP-III LIGA Senior PK 2020"]
[Site "Bystre"]
[Date "2020.07.11"]
[Round "7.24"]
[White "Uliasz, Katarzyna"]
[Black "Krzyzanowska-Zadlo, Lidia"]
[Result "1/2-1/2"]
[ECO "B24"]
[WhiteElo "1386"]
[BlackElo "1801"]
[Annotator "NA RC"]
[PlyCount "63"]
[EventDate "2020.07.05"]
[EventType "team-tourn"]
[EventCountry "POL"]
[SourceTitle "playchess.com"]
[Source "ChessBase"]
[SourceQuality "1"]
[TimeControl "5400+30"]

1. e4 {[%emt 0:00:00]} c5 {[%emt 0:00:00]} 2. Nc3 {[%emt 0:00:05]} Nc6 {[%emt 0:02:16]} 3. Bc4 {[%emt 0:02:04]} e6 {[%emt 0:02:55]} 4. Nf3 {[%emt 0:00:29]} a6 {[%emt 0:00:45]} 5. d3 {[%emt 0:02:45]} b5 {[%emt 0:03:47]} 6. Bb3 {[%emt 0:00:42]} d6 {[%emt 0:07:29]} 7. O-O {[%emt 0:01:48]} Be7 {[%emt 0:00:35]} 8. Ne2 {[%emt 0:00:29]} Nf6 {[%emt 0:00:46]} 9. c3 {[%emt 0:00:18]} Ne5 {[%emt 0:09:07]} 10. Ng3 {[%emt 0:04:47]} Bb7 {[%emt 0:03:55]} 11. Re1 {[%emt 0:04:10]} O-O {[%emt 0:07:12]} 12. d4 {[%emt 0:01:26]} Nxf3+ {[%emt 0:05:57]} 13. Qxf3 {[%emt 0:00:07]} c4 {[%emt 0:00:40]} 14. Bc2 {[%emt 0:00:48]} Qc7 {[%emt 0:00:51]} 15. Bd2 {[%emt 0:02:58]} Rad8 {[%emt 0:02:33]} 16. h3 {[%emt 0:00:41]} Ne8 {[%emt 0:04:44]} 17. Qe2 {[%emt 0:00:32]} e5 {[%emt 0:04:50]} 18. Nf5 {[%emt 0:08:58]} Bc8 {[%emt 0:03:10]} 19. Nxe7+ {[%emt 0:09:02]} Qxe7 {[%emt 0:00:08]} 20. a4 {[%emt 0:01:50]} Bd7 {[%emt 0:01:45]} 21. axb5 {[%emt 0:00:32]} axb5 {[%emt 0:00:04]} 22. Ra7 {[%emt 0:06:15]} Nf6 {[%emt 0:00:32]} 23. b3 {[%emt 0:03:17]} cxb3 {[%emt 0:02:18]} 24. Bxb3 {[%emt 0:00:04]} Ra8 {[%emt 0:02:03]} 25. Rea1 {[%emt 0:00:42]} Rxa7 {[%emt 0:00:13]} 26. Rxa7 {[%emt 0:00:01]} exd4 {[%emt 0:00:11]} 27. Bg5 {[%emt 0:10:50]} Qxe4 {[%emt 0:07:20]} 28. Qxe4 {[%emt 0:00:13]} Nxe4 {[%emt 0:00:06]} 29. Be7 {[%emt 0:02:45]} Re8 {[%emt 0:00:53]} 30. Rxd7 {[%emt 0:07:28]} Nc5 {[%emt 0:00:29]} 31. Rxd6 {[%emt 0:00:39]} Nxb3 {[%emt 0:00:20]} 32. cxd4 {[%emt 0:00:13]} 1/2-1/2

[Event "DMP-III LIGA Senior PK 2020"]
[Site "Bystre"]
[Date "2020.07.11"]
[Round "7.26"]
[White "Mazurkiewicz, Andrzej"]
[Black "Lach, Ireneusz"]
[Result "1-0"]
[ECO "A53"]
[WhiteElo "1608"]
[BlackElo "1897"]
[Annotator "NA RC"]
[PlyCount "82"]
[EventDate "2020.07.05"]
[EventType "team-tourn"]
[EventCountry "POL"]
[SourceTitle "playchess.com"]
[Source "ChessBase"]
[SourceQuality "1"]
[TimeControl "5400+30"]

1. d4 {[%emt 0:00:00]} Nf6 {[%emt 0:00:00]} 2. c4 {[%emt 0:00:00]} d6 {[%emt 0:00:00]} 3. Nc3 {[%emt 0:00:00]} Nbd7 {[%emt 0:00:02]} 4. e4 {[%emt 0:00:20]} g6 {[%emt 0:00:29]} 5. Be2 {[%emt 0:00:40]} Bg7 {[%emt 0:00:08]} 6. Bg5 {[%emt 0:01:20]} h6 {[%emt 0:00:14]} 7. Bh4 {[%emt 0:00:39] E73: King's Indian: Averbakh Variation without 6...c5.} (7. Be3 $14) 7... c5 {[%emt 0:00:40]} 8. d5 {[%emt 0:00:46] [#]} a6 $146 {[%emt 0:03:11]} ({Predecessor:} 8... g5 9. Bg3 h5 10. h3 Nf8 11. Nf3 Bh6 12. e5 dxe5 13. Nxe5 h4 14. Bh2 a6 {0-1 (71) Skomorokhin,R (2384)-Franck,B (2105) Lille 2014}) 9. f4 {[%emt 0:02:22]} Qa5 {[%emt 0:05:02]} 10. Qd2 $1 {[%emt 0:01:18]} O-O {[%emt 0:15:39]} ({Black should try} 10... b5 $1 $11 11. cxb5 axb5 12. Bxb5 Rb8 13. Bxf6 Bxf6) 11. Nf3 {[%emt 0:00:17]} Re8 {[%emt 0:11:08]} 12. O-O {[%emt 0:01:01]} Nh7 {[%emt 0:07:48]} 13. Be1 {[%emt 0:01:09]} Qc7 {[%emt 0:13:02]} 14. Rd1 {[%emt 0:05:04]} Ndf8 {[%emt 0:01:55]} 15. h3 {[%emt 0:01:59]} h5 {[%emt 0:01:54]} 16. Bg3 {[%emt 0:09:15]} Bd7 {[%emt 0:06:10]} 17. e5 {[%emt 0:04:52]} Rad8 {[%emt 0:02:51]} 18. Kh2 {[%emt 0:13:00]} Qc8 {[%emt 0:07:12]} 19. Bh4 {[%emt 0:03:19]} Bf5 {[%emt 0:03:06]} 20. Bd3 {[%emt 0:01:15]} Bxd3 {[%emt 0:07:09]} 21. Qxd3 {[%emt 0:00:11]} f6 {[%emt 0:04:20]} 22. e6 {[%emt 0:04:50]} f5 {[%emt 0:01:26]} 23. Rg1 {[%emt 0:11:43]} Nf6 {[%emt 0:00:32]} 24. Ng5 {[%emt 0:04:09]} Qa8 {[%emt 0:01:18]} 25. Nf7 {[%emt 0:02:23]} N8h7 {[%emt 0:03:11]} 26. Nxd8 {[%emt 0:02:09]} Qxd8 {[%emt 0:00:10]} 27. g4 {[%emt 0:04:59]} hxg4 {[%emt 0:01:18]} 28. hxg4 {[%emt 0:00:23]} Nxg4+ {[%emt 0:00:21]} 29. Rxg4 {[%emt 0:00:53]} fxg4 {[%emt 0:00:14]} 30. Qxg6 {[%emt 0:00:20]} Kh8 {[%emt 0:03:07]} 31. Qf7 {[%emt 0:07:29]} Bf6 {[%emt 0:00:51]} 32. Bxf6+ {[%emt 0:01:18]} exf6 {[%emt 0:00:13]} 33. Kg3 {[%emt 0:02:15]} Re7 {[%emt 0:00:38]} 34. Qh5 {[%emt 0:01:12]} Rg7 {[%emt 0:00:59]} 35. Rh1 {[%emt 0:00:30]} Qe7 {[%emt 0:00:37]} 36. f5 {[%emt 0:01:11]} Kg8 {[%emt 0:00:27]} 37. Ne4 {[%emt 0:00:33]} b6 {[%emt 0:00:32]} 38. Rh4 {[%emt 0:02:21]} Kf8 {[%emt 0:00:31]} 39. Rxg4 {[%emt 0:01:08]} Rxg4+ {[%emt 0:00:26]} 40. Kxg4 {[%emt 0:01:18]} Qc7 {[%emt 0:00:35] [#]} 41. Nxd6 {[%emt 0:01:28]} Qd8 {[%emt 0:01:04]} 1-0

[Event "DMP-III LIGA Senior PK 2020"]
[Site "Bystre"]
[Date "2020.07.11"]
[Round "7.27"]
[White "Janzer, Hubert"]
[Black "Chowaniec, Artur"]
[Result "1/2-1/2"]
[ECO "D00"]
[WhiteElo "1893"]
[BlackElo "1530"]
[Annotator "NA RC"]
[PlyCount "108"]
[EventDate "2020.07.05"]
[EventType "team-tourn"]
[EventCountry "POL"]
[SourceTitle "playchess.com"]
[Source "ChessBase"]
[SourceQuality "1"]
[TimeControl "5400+30"]

1. d4 {[%emt 0:00:00]} d5 {[%emt 0:00:00]} 2. Bf4 {[%emt 0:00:00]} c5 {[%emt 0:00:00]} 3. c3 {[%emt 0:00:00]} cxd4 {[%emt 0:00:11]} 4. cxd4 {[%emt 0:00:00]} Qb6 {[%emt 0:02:28]} 5. Qd2 {[%emt 0:04:11]} Nc6 {[%emt 0:00:31]} 6. e3 {[%emt 0:00:15] D10: Slav Defence: 3 cxd5 (without early Nf3) and 3 Nc3.} Bf5 {[%emt 0:01:21]} 7. Nc3 {[%emt 0:00:35]} e6 {[%emt 0:00:15]} 8. Nf3 {[%emt 0:00:35] [#]} h6 $146 {[%emt 0:00:09]} ({Predecessor:} 8... Nf6 9. Bd3 Bxd3 10. Qxd3 Be7 11. O-O O-O 12. a3 Na5 13. b4 Nc4 14. Ne5 Rfc8 {0-1 (46) Makkar,R (1985)-Villiers,T (2173) Hull 2018}) 9. Be2 {[%emt 0:00:48]} Nf6 {[%emt 0:00:34]} 10. Ne5 {[%emt 0:01:39]} Nxe5 {[%emt 0:02:49]} 11. Bxe5 {[%emt 0:00:36]} Bb4 {[%emt 0:00:20]} 12. f3 {[%emt 0:08:19]} O-O {[%emt 0:01:04]} 13. Bxf6 {[%emt 0:01:00]} gxf6 {[%emt 0:00:10]} 14. g4 {[%emt 0:00:14]} Bg6 {[%emt 0:00:18]} 15. h4 {[%emt 0:10:08]} Kg7 {[%emt 0:00:09]} 16. h5 {[%emt 0:02:07]} Bh7 {[%emt 0:00:14]} 17. Rc1 {[%emt 0:07:48]} Rac8 {[%emt 0:00:13]} 18. a3 {[%emt 0:00:47]} Bxc3 {[%emt 0:00:24]} 19. Rxc3 {[%emt 0:00:13]} Rc6 {[%emt 0:00:52]} 20. O-O {[%emt 0:00:54]} Qc7 {[%emt 0:00:23]} 21. Kg2 {[%emt 0:00:36]} f5 {[%emt 0:00:34]} 22. Rxc6 {[%emt 0:08:51]} Qxc6 {[%emt 0:00:58]} 23. Rc1 {[%emt 0:00:30]} Qd7 {[%emt 0:00:10]} 24. Qc3 {[%emt 0:00:34]} fxg4 {[%emt 0:00:23]} 25. fxg4 {[%emt 0:00:05]} Be4+ {[%emt 0:00:14]} 26. Kh3 {[%emt 0:00:26]} f5 {[%emt 0:00:36]} 27. Qc7 {[%emt 0:00:58]} Qxc7 {[%emt 0:00:45]} 28. Rxc7+ {[%emt 0:00:05]} Rf7 {[%emt 0:00:08]} 29. Rc5 {[%emt 0:01:28]} b6 {[%emt 0:01:04]} 30. Rc6 {[%emt 0:00:44]} Kf6 {[%emt 0:02:21]} 31. Rc8 {[%emt 0:03:17]} fxg4+ {[%emt 0:00:43]} 32. Bxg4 {[%emt 0:02:33]} Bf5 $11 {[%emt 0:00:28]} 33. Rh8 {[%emt 0:11:05]} Kg7 {[%emt 0:00:56]} 34. Ra8 {[%emt 0:00:51]} Kf6 {[%emt 0:04:27]} 35. Kh4 {[%emt 0:00:59]} Bxg4 {[%emt 0:01:02]} 36. Kxg4 {[%emt 0:00:07]} Rc7 {[%emt 0:04:54]} 37. Kf4 {[%emt 0:03:11]} Rf7 {[%emt 0:04:36]} 38. b4 {[%emt 0:01:01]} Ke7+ {[%emt 0:00:51]} 39. Kg4 {[%emt 0:00:15]} Rg7+ {[%emt 0:00:36]} 40. Kh4 {[%emt 0:00:09]} Kf6 {[%emt 0:01:53]} 41. Rh8 {[%emt 0:00:08]} Kf5 {[%emt 0:00:17]} 42. Rxh6 {[%emt 0:00:15]} Rg4+ {[%emt 0:00:30]} 43. Kh3 {[%emt 0:00:06]} Re4 {[%emt 0:00:15]} 44. Rg6 {[%emt 0:04:01]} Rxe3+ {[%emt 0:00:17]} 45. Kh2 {[%emt 0:01:45]} Re4 {[%emt 0:01:24]} 46. Rg7 {[%emt 0:00:44]} a5 {[%emt 0:03:48]} 47. Kg3 {[%emt 0:09:19]} axb4 {[%emt 0:03:28]} 48. axb4 {[%emt 0:00:31]} Rxd4 {[%emt 0:01:17]} 49. h6 {[%emt 0:00:12]} Rd3+ {[%emt 0:02:06]} 50. Kh2 {[%emt 0:00:30]} Kf6 {[%emt 0:02:05]} 51. Rg2 {[%emt 0:00:37]} Rd4 {[%emt 0:00:54]} 52. Kh3 {[%emt 0:00:16]} Rd3+ 53. Kh4 Rd1 54. Kh3 Rd3+ 1/2-1/2

[Event "DMP-III LIGA Senior PK 2020"]
[Site "Bystre"]
[Date "2020.07.11"]
[Round "7.28"]
[White "Wrobel, Dariusz"]
[Black "Lach, Tomasz"]
[Result "0-1"]
[ECO "B13"]
[WhiteElo "1427"]
[BlackElo "1833"]
[Annotator "NA RC"]
[PlyCount "94"]
[EventDate "2020.07.05"]
[EventType "team-tourn"]
[EventCountry "POL"]
[SourceTitle "playchess.com"]
[Source "ChessBase"]
[SourceQuality "1"]
[TimeControl "5400+30"]

1. e4 {[%emt 0:04:01]} c6 {[%emt 0:00:00]} 2. d4 {[%emt 0:00:38]} d5 {[%emt 0:00:00]} 3. exd5 {[%emt 0:00:09]} cxd5 {[%emt 0:00:02]} 4. Nf3 {[%emt 0:00:16]} Nf6 {[%emt 0:00:08]} 5. Bb5+ {[%emt 0:00:48]} Bd7 {[%emt 0:00:05]} 6. Qd3 {[%emt 0:00:44] B13: Caro-Kann: Exchange Variation and Panov-Botvinnik Attack.} a6 {[%emt 0:00:30]} 7. Bxd7+ {[%emt 0:00:11]} Nbxd7 {[%emt 0:00:02]} 8. O-O {[%emt 0:00:48]} e6 {[%emt 0:00:17] [#]} 9. Re1 $146 {[%emt 0:01:45]} ({Predecessor:} 9. Bg5 Be7 10. Nc3 O-O 11. Rfe1 Re8 12. Re2 Rc8 13. Rae1 Bb4 14. Ne5 Qc7 15. Qg3 {0-1 (47) Giovannini,G-Bonzano,M Laveno 1999}) 9... Be7 {[%emt 0:00:54]} 10. Bg5 {[%emt 0:00:39]} O-O {[%emt 0:00:08]} 11. Nbd2 {[%emt 0:00:19]} Rc8 {[%emt 0:00:57]} 12. Re2 {[%emt 0:02:16]} Qc7 {[%emt 0:07:36]} 13. c3 {[%emt 0:01:37]} Nb6 {[%emt 0:00:12]} 14. Ne5 {[%emt 0:00:28]} Na4 {[%emt 0:04:30]} 15. Qc2 {[%emt 0:01:18]} b5 {[%emt 0:00:48]} 16. f3 {[%emt 0:01:10]} Nb6 {[%emt 0:00:43]} 17. a3 {[%emt 0:00:48]} Nc4 {[%emt 0:03:24]} 18. Nf1 {[%emt 0:01:23]} Rfe8 {[%emt 0:04:15]} 19. Rae1 {[%emt 0:01:14]} Nxe5 {[%emt 0:04:37]} 20. Rxe5 {[%emt 0:00:26]} Nd7 {[%emt 0:01:18]} 21. Bxe7 {[%emt 0:03:15]} Nxe5 {[%emt 0:00:47]} 22. Bh4 {[%emt 0:00:25]} Nc6 {[%emt 0:00:58]} 23. Qf2 {[%emt 0:01:07]} a5 {[%emt 0:00:48]} 24. Bg3 {[%emt 0:00:27]} Qb7 {[%emt 0:01:00]} 25. Bd6 {[%emt 0:01:42]} b4 {[%emt 0:01:43]} 26. axb4 {[%emt 0:00:39]} axb4 {[%emt 0:00:01]} 27. Bc5 {[%emt 0:00:15]} bxc3 {[%emt 0:03:36]} 28. bxc3 {[%emt 0:00:36]} Qb3 {[%emt 0:02:18]} 29. Qe3 {[%emt 0:00:23]} Ra8 {[%emt 0:01:24]} 30. h4 {[%emt 0:00:16]} Ra2 {[%emt 0:00:58]} 31. h5 {[%emt 0:01:48]} Qc2 {[%emt 0:00:30]} 32. Qg5 {[%emt 0:00:18]} Qf2+ {[%emt 0:02:17] Double Attack} 33. Kh2 {[%emt 0:00:17]} h6 {[%emt 0:00:23]} (33... Qxe1 $2 {too greedy.} 34. h6 $18) 34. Qg3 {[%emt 0:01:38]} Qxg3+ {[%emt 0:00:27]} 35. Kxg3 {[%emt 0:00:28]} Rb8 {[%emt 0:00:17]} 36. Ne3 {[%emt 0:00:57]} Rbb2 {[%emt 0:00:36]} 37. Kf4 {[%emt 0:00:46]} f6 {[%emt 0:03:45]} 38. g4 {[%emt 0:00:56]} Kf7 $19 {[%emt 0:01:27]} 39. Kg3 {[%emt 0:00:22]} Re2 {[%emt 0:04:27]} 40. Rxe2 {[%emt 0:00:25]} Rxe2 {[%emt 0:00:05]} 41. Nd1 {[%emt 0:01:13]} Rd2 {[%emt 0:00:37]} 42. Ne3 {[%emt 0:00:26]} Rd3 {[%emt 0:00:36]} 43. Kf2 {[%emt 0:00:12]} Rxc3 {[%emt 0:00:35]} 44. Ke2 {[%emt 0:00:21]} Rb3 {[%emt 0:01:57]} 45. f4 {[%emt 0:00:24]} Na5 {[%emt 0:00:32]} 46. Nc2 {[%emt 0:01:05]} Rg3 {[%emt 0:00:46]} 47. Ne3 {[%emt 0:00:29]} Nc4 0-1

[Event "DMP-III LIGA Senior PK 2020"]
[Site "Bystre"]
[Date "2020.07.11"]
[Round "7.29"]
[White "Lach, Mateusz"]
[Black "Kielb, Miroslaw"]
[Result "1-0"]
[ECO "E00"]
[WhiteElo "1674"]
[BlackElo "1394"]
[Annotator "NA RC"]
[PlyCount "147"]
[EventDate "2020.07.05"]
[EventType "team-tourn"]
[EventCountry "POL"]
[SourceTitle "playchess.com"]
[Source "ChessBase"]
[SourceQuality "1"]
[TimeControl "5400+30"]

1. d4 {[%emt 0:00:00]} Nf6 {[%emt 0:00:00]} 2. c4 {[%emt 0:00:00]} e6 {[%emt 0:00:39]} 3. e3 {[%emt 0:00:00]} d5 {[%emt 0:00:38]} 4. Nc3 {[%emt 0:00:00]} Bb4 {[%emt 0:00:31]} 5. Bd2 {[%emt 0:00:00]} O-O {[%emt 0:00:43]} 6. a3 {[%emt 0:00:05]} Bxc3 {[%emt 0:00:18]} 7. Bxc3 {[%emt 0:00:10]} dxc4 {[%emt 0:02:14]} 8. Bxc4 {[%emt 0:00:02]} c6 {[%emt 0:00:48]} 9. Nf3 {[%emt 0:00:14]} b5 {[%emt 0:00:31]} 10. Bd3 {[%emt 0:00:07]} Bb7 {[%emt 0:01:04]} 11. O-O {[%emt 0:00:19]} Nbd7 {[%emt 0:00:30]} 12. Qc2 {[%emt 0:00:49]} h6 {[%emt 0:01:51]} 13. h3 {[%emt 0:00:07]} a6 {[%emt 0:00:56]} 14. Bb4 {[%emt 0:00:36]} Re8 {[%emt 0:00:39]} 15. Bc5 {[%emt 0:00:22]} Nxc5 {[%emt 0:00:50]} 16. dxc5 {[%emt 0:00:25]} e5 {[%emt 0:00:45]} 17. Be4 {[%emt 0:01:19]} Nxe4 {[%emt 0:00:42]} 18. Qxe4 {[%emt 0:00:13]} Qd5 {[%emt 0:00:38]} 19. Qc2 {[%emt 0:00:35]} Rad8 {[%emt 0:06:41]} 20. Rfd1 {[%emt 0:00:28]} Qe6 {[%emt 0:00:32]} 21. Rxd8 {[%emt 0:00:18]} Rxd8 {[%emt 0:00:07]} 22. Rd1 {[%emt 0:00:12]} Rxd1+ {[%emt 0:07:57]} 23. Qxd1 {[%emt 0:00:02]} f6 {[%emt 0:00:53]} 24. Qd8+ Kf7 {[%emt 0:01:13]} 25. Qc7+ {[%emt 0:02:41]} Qe7 {[%emt 0:00:14]} 26. Qxe7+ {[%emt 0:00:46]} Kxe7 {[%emt 0:00:07]} 27. e4 {[%emt 0:00:19]} Bc8 {[%emt 0:00:53]} 28. Ne1 {[%emt 0:00:17]} a5 {[%emt 0:01:50]} 29. f3 {[%emt 0:00:31]} a4 {[%emt 0:02:59]} 30. Kf2 {[%emt 0:00:02]} f5 {[%emt 0:02:33]} 31. Nd3 {[%emt 0:01:13]} Kf6 {[%emt 0:01:03]} 32. Nb4 {[%emt 0:00:32]} Bb7 {[%emt 0:01:49]} 33. g3 {[%emt 0:00:34]} fxe4 {[%emt 0:00:21]} 34. fxe4 {[%emt 0:00:05]} h5 {[%emt 0:00:58]} 35. h4 {[%emt 0:00:43]} g6 {[%emt 0:00:26]} 36. Kf3 {[%emt 0:00:11]} Ke6 {[%emt 0:01:59]} 37. Ke3 {[%emt 0:11:58]} Kf6 {[%emt 0:00:51]} 38. Kd3 {[%emt 0:00:09]} Ke6 {[%emt 0:03:09]} 39. Kc3 {[%emt 0:00:01]} Kf6 {[%emt 0:00:52]} 40. Nd3 {[%emt 0:00:03]} Bc8 {[%emt 0:01:03]} 41. Kb4 {[%emt 0:00:11]} Be6 {[%emt 0:02:49]} 42. Ka5 {[%emt 0:00:48]} Bc4 {[%emt 0:00:26]} 43. Nb4 {[%emt 0:00:30]} Bf1 {[%emt 0:00:31]} 44. Nxc6 {[%emt 0:00:31]} Bg2 {[%emt 0:00:18]} 45. Kxb5 {[%emt 0:00:49]} Bxe4 {[%emt 0:00:16]} 46. Na7 {[%emt 0:00:31]} Kf5 {[%emt 0:00:57]} 47. c6 {[%emt 0:00:20]} Bxc6+ {[%emt 0:00:44]} 48. Nxc6 {[%emt 0:00:02]} e4 {[%emt 0:00:35]} 49. Kxa4 {[%emt 0:00:20]} e3 {[%emt 0:00:25]} 50. Nd4+ {[%emt 0:00:13]} Ke4 {[%emt 0:01:00]} 51. Nc2 {[%emt 0:00:39]} e2 {[%emt 0:00:37]} 52. b4 {[%emt 0:00:13]} Kd3 {[%emt 0:00:37]} 53. Kb3 {[%emt 0:00:06]} Kd2 {[%emt 0:00:30]} 54. b5 {[%emt 0:00:04]} e1=Q {[%emt 0:00:30]} 55. Nxe1 {[%emt 0:00:06]} Kxe1 {[%emt 0:00:12]} 56. b6 {[%emt 0:00:05]} Kf2 {[%emt 0:00:18]} 57. b7 {[%emt 0:00:04]} Kxg3 {[%emt 0:00:10]} 58. b8=Q+ {[%emt 0:00:05]} Kxh4 {[%emt 0:00:10]} 59. Qf4+ {[%emt 0:00:11]} Kh3 {[%emt 0:00:20]} 60. Qg5 {[%emt 0:00:04]} h4 {[%emt 0:00:18]} 61. Qxg6 {[%emt 0:00:52]} Kh2 {[%emt 0:00:17]} 62. a4 {[%emt 0:00:10]} h3 {[%emt 0:00:06]} 63. a5 {[%emt 0:00:19]} Kh1 {[%emt 0:00:04]} 64. a6 {[%emt 0:00:04]} h2 {[%emt 0:00:04]} 65. Qe4+ {[%emt 0:00:05]} Kg1 {[%emt 0:00:10]} 66. a7 {[%emt 0:00:04]} h1=Q {[%emt 0:00:15]} 67. Qxh1+ {[%emt 0:00:08]} Kxh1 {[%emt 0:00:04]} 68. a8=Q+ {[%emt 0:00:12]} Kh2 {[%emt 0:00:30]} 69. Qg8 {[%emt 0:00:08]} Kh3 {[%emt 0:00:08]} 70. Kc3 {[%emt 0:00:05]} Kh4 {[%emt 0:00:07]} 71. Kd4 {[%emt 0:00:03]} Kh5 {[%emt 0:00:08]} 72. Ke5 {[%emt 0:00:03]} Kh4 {[%emt 0:00:06]} 73. Kf4 {[%emt 0:00:04]} Kh3 {[%emt 0:00:10]} 74. Qg3# 1-0